bitfinex/quotes_ETHUSD_20250814
["timestamp","ask_amount","ask_price","bid_price","bid_amount"]
[1755141458069,0.475,4755.0,4753.4,2.10951885]
[1755141458369,0.4723,4754.9,4753.5,1.11539895]
[1755141460343,0.4723,4754.9,4753.6,1.11539895]
[1755141461079,0.4723,4754.9,4753.5,1.58815094]
[1755141461977,0.4723,4754.9,4753.6,1.11539895]
[1755141462482,0.4723,4754.9,4753.7,1.11539895]
[1755141463973,0.475,4755.4,4753.8,1.62219895]
[1755141464146,0.475,4755.4,4753.9,1.77929404]
[1755141464357,0.475,4755.4,4754.0,3.278]
[1755141465191,0.4723,4755.3,4754.0,4.39339895]
[1755141466275,0.4723,4755.3,4754.1,1.11539895]
[1755141466493,0.4723,4755.3,4754.1,1.62636835]
[1755141468186,0.196091,4756.5,4754.1,1.62636835]
[1755141468388,0.4723,4755.7,4754.4,1.11539895]
[1755141468563,0.4723,4755.7,4754.5,1.11539895]
[1755141468890,0.4723,4756.1,4754.7,1.11539895]
[1755141469090,0.4723,4756.1,4754.8,3.278]
[1755141469391,0.4723,4756.1,4754.8,4.39339895]
[1755141469891,14.5,4755.6,4754.8,4.39339895]
[1755141470672,14.5,4755.6,4754.9,1.11539895]
[1755141470868,14.5,4755.6,4754.8,3.278]
[1755141470869,14.5,4755.6,4755.0,1.61640084]
[1755141471279,14.5,4755.6,4755.0,0.50100189]
[1755141471696,14.5,4755.6,4755.0,1.61640084]
[1755141471886,14.5,4755.6,4755.0,0.50100189]
[1755141473692,0.4519,4755.5,4754.9,1.11539895]
[1755141473998,0.9022,4755.5,4755.0,3.277]
[1755141474168,0.4519,4755.4,4755.0,3.277]
[1755141474391,0.4519,4755.4,4754.7,1.11539895]
[1755141474392,1.27028321,4755.4,4755.1,3.277]
[1755141474697,0.9022,4755.3,4755.2,3.277]
[1755141477121,15.4022,4755.3,4755.2,3.277]
[1755141478224,14.5,4755.3,4755.2,3.277]
[1755141480230,0.4519,4756.3,4755.2,3.7992]
[1755141480409,0.41015779,4757.2,4755.0,1.11539895]
[1755141480410,17.29600028,4755.7,4755.0,1.11539895]
[1755141480613,14.5,4755.6,4755.1,3.276]
[1755141481129,14.5,4755.6,4755.2,4.29]
[1755141481609,14.9519,4755.6,4755.2,4.29]
[1755141482216,14.5,4755.6,4755.2,4.29]
[1755141482524,0.4519,4755.5,4755.2,4.29]
[1755141482736,0.9022,4755.5,4755.2,4.29]
[1755141483043,0.4519,4755.4,4755.2,4.29]
[1755141483236,0.9022,4755.4,4755.2,4.29]
[1755141483414,0.9022,4755.3,4755.2,4.29]
[1755141483740,0.9022,4755.3,4755.2,7.566]
[1755141484530,0.9022,4755.3,4754.7,4.29]
[1755141484710,0.4519,4755.2,4754.8,7.566]
[1755141484904,0.9022,4755.2,4754.8,3.276]
[1755141485103,0.4519,4755.2,4754.8,3.276]
[1755141485313,0.9022,4755.1,4754.8,4.29]
[1755141485516,0.9022,4755.0,4754.9,3.276]
[1755141486026,0.9022,4755.0,4754.6,5.039]
[1755141486219,0.9022,4754.9,4754.6,5.039]
[1755141486420,17.29600028,4755.5,4754.7,3.276]
[1755141486623,15.4022,4754.8,4754.7,3.276]
[1755141487506,14.9519,4754.8,4754.7,3.276]
[1755141488211,15.4022,4754.8,4754.7,3.276]
[1755141488419,15.4022,4754.8,4754.6,5.039]
[1755141488621,17.29600028,4755.0,4754.6,5.039]
[1755141488810,1.72960003,4754.9,4754.7,3.276]
[1755141489221,15.4022,4754.8,4754.7,3.276]
[1755141490828,15.4022,4754.8,4753.7,1.11539895]
[1755141491031,1.72960003,4754.9,4753.8,3.276]
[1755141491032,17.29600028,4754.5,4753.8,3.276]
[1755141491328,17.29600028,4754.5,4753.6,5.039]
[1755141491329,0.9022,4754.4,4753.6,5.039]
[1755141491556,14.5,4754.3,4753.7,3.276]
[1755141491848,0.4519,4754.2,4753.7,3.276]
[1755141492055,0.4519,4754.2,4753.6,5.039]
[1755141492259,0.9022,4754.2,4753.3,1.11539895]
[1755141492443,14.5,4754.1,4753.3,1.11539895]
[1755141492645,14.5,4754.1,4753.2,5.039]
[1755141492646,18.19820028,4754.0,4753.2,5.039]
[1755141492855,0.9022,4753.9,4753.3,3.276]
[1755141493057,0.4519,4753.8,4753.3,3.276]
[1755141493553,14.9519,4753.7,4753.3,3.276]
[1755141493758,14.9503,4753.7,4753.3,3.276]
[1755141493953,0.4519,4753.6,4753.3,3.276]
[1755141494338,0.4519,4753.9,4753.3,3.276]
[1755141494541,14.5,4753.5,4753.3,3.276]
[1755141494747,14.5,4753.5,4753.3,4.21903989]
[1755141495854,14.5,4753.5,4753.4,0.4698]
[1755141496269,14.5,4753.5,4753.3,4.21903989]
[1755141496638,0.4519,4754.5,4753.3,4.68883989]
[1755141497162,14.5,4754.4,4753.4,1.11539895]
[1755141497370,14.5,4754.4,4753.5,0.55261011]
[1755141497535,14.5,4754.4,4753.6,3.276]
[1755141497945,0.4519,4755.0,4753.6,3.3284]
[1755141498158,0.4519,4755.0,4753.7,0.4698]
[1755141498431,0.4519,4755.0,4753.8,0.57823195]
[1755141498432,14.5,4754.9,4753.8,0.57823195]
[1755141498835,14.5,4754.9,4753.8,1.6936309]
[1755141499147,14.5,4754.9,4753.9,1.11539895]
[1755141499353,14.5,4754.9,4754.0,3.275]
[1755141499548,14.5,4754.9,4754.1,0.36480794]
[1755141499951,0.4519,4754.8,4754.1,0.36480794]
[1755141500252,0.4519,4754.8,4754.1,5.40480794]
[1755141500645,14.5,4754.7,4754.1,5.40480794]
[1755141504581,14.5,4754.7,4754.1,6.52020689]
[1755141504752,14.5,4754.7,4754.2,0.55261011]
[1755141504940,14.5,4754.7,4754.1,6.15539895]
[1755141505140,0.8987,4754.6,4754.2,3.275]
[1755141505339,0.8987,4754.5,4754.2,3.275]
[1755141505561,17.29600028,4754.6,4754.2,3.275]
[1755141505562,0.8987,4754.4,4754.2,3.275]
[1755141505749,14.5,4754.7,4754.2,3.275]
[1755141505952,14.9341,4754.7,4754.2,3.275]
[1755141506352,14.5,4754.7,4754.2,4.21803989]
[1755141506573,14.5,4754.7,4754.3,0.4698]
[1755141506739,0.4341,4755.7,4754.3,1.63759895]
[1755141506947,0.4341,4755.7,4754.5,1.11539895]
[1755141507257,14.5,4755.6,4754.6,3.275]
[1755141507464,0.4341,4755.5,4754.7,0.4860199]
[1755141508638,0.8987,4755.5,4754.7,0.4860199]
[1755141509154,0.4341,4755.4,4754.7,0.4860199]
[1755141511045,14.5,4755.3,4754.7,0.4860199]
[1755141513060,0.4341,4755.2,4754.7,0.4860199]
[1755141513256,0.8987,4755.2,4754.6,1.11539895]
[1755141513472,0.8987,4755.2,4754.7,3.274]
[1755141513675,14.9341,4755.1,4754.8,3.274]
[1755141513867,0.8987,4755.0,4754.8,3.274]
[1755141514263,0.4341,4754.9,4754.8,3.274]
[1755141514687,14.9341,4754.9,4754.8,3.274]
[1755141516453,14.5,4754.9,4754.8,3.274]
[1755141516659,0.4341,4755.6,4754.8,3.7129399]
[1755141517061,14.5,4755.5,4754.8,4.82833885]
[1755141517450,14.5,4755.5,4754.9,1.11539895]
[1755141518089,14.5,4755.5,4754.8,4.82833885]
[1755141518384,14.5,4755.5,4754.9,0.52981389]
[1755141518782,14.5,4755.5,4754.9,1.64521284]
[1755141521899,0.4341,4755.8,4754.9,1.64521284]
[1755141522406,14.5,4755.7,4754.9,1.64521284]
[1755141522576,0.4341,4755.6,4754.9,1.64521284]
[1755141523096,0.4341,4755.6,4755.0,0.49192128]
[1755141523402,14.5,4755.5,4755.0,1.60732023]
[1755141523695,14.5,4755.5,4755.1,1.11539895]
[1755141523905,14.5,4755.5,4755.2,3.272]
[1755141525340,0.4341,4756.3,4755.4,1.11539895]
[1755141525505,0.4341,4756.3,4755.4,1.65031097]
[1755141525703,14.5,4756.2,4755.4,1.65031097]
[1755141525933,14.5,4756.2,4755.5,1.11539895]
[1755141526093,14.5,4756.2,4755.6,3.272]
[1755141526296,14.5,4756.2,4755.6,4.85621565]
[1755141527344,0.4341,4757.1,4755.8,1.11539895]
[1755141527628,0.4341,4757.1,4755.7,0.4698]
[1755141527629,0.4341,4757.1,4756.1,1.11539895]
[1755141527837,0.4341,4757.1,4756.2,4.38739895]
[1755141528003,0.4341,4757.1,4756.3,5.038]
[1755141530224,0.4646,4757.0,4756.3,5.038]
[1755141530419,0.4341,4756.9,4756.4,3.271]
[1755141530600,0.4341,4756.9,4756.3,5.038]
[1755141530804,0.4646,4756.8,4756.4,3.271]
[1755141531219,0.431,4756.7,4756.5,0.8309]
[1755141531426,0.9294,4756.7,4756.5,0.8309]
[1755141531615,0.4984,4756.6,4756.3,5.038]
[1755141531820,0.9294,4756.5,4756.3,5.038]
[1755141532126,17.28923003,4757.2,4756.4,3.271]
[1755141532323,1.728923,4757.1,4756.4,3.271]
[1755141532530,17.28923003,4757.2,4756.4,3.271]
[1755141532835,0.431,4757.0,4756.4,3.271]
[1755141533807,0.431,4757.0,4756.3,5.038]
[1755141534033,0.431,4757.0,4756.4,3.27]
[1755141534413,0.4984,4756.9,4756.4,3.27]
[1755141534713,0.9294,4756.8,4756.4,3.27]
[1755141534912,0.9294,4756.7,4756.4,3.27]
[1755141535114,0.9294,4756.6,4756.5,3.27]
[1755141535639,0.9294,4756.6,4756.3,5.038]
[1755141535829,17.28923003,4757.2,4756.5,3.27]
[1755141536439,17.28923003,4756.7,4756.3,5.038]
[1755141536640,0.9294,4756.6,4756.4,3.27]
[1755141536946,0.9294,4756.5,4756.4,3.27]
[1755141537843,0.9294,4756.5,4756.3,5.038]
[1755141538036,2.751263,4756.4,4756.3,5.038]
[1755141538226,2.751263,4756.4,4756.3,8.308]
[1755141539021,2.252863,4756.4,4756.3,8.308]
[1755141539250,2.252863,4756.4,4756.3,5.038]
[1755141539251,0.9294,4756.4,4756.3,5.038]
[1755141539650,18.21863003,4756.4,4756.3,8.307]
[1755141540750,18.21863003,4756.4,4756.3,5.038]
[1755141541275,18.21863003,4756.4,4756.3,8.307]
[1755141541469,20.04049303,4756.4,4756.3,5.038]
[1755141541770,20.04049303,4756.4,4756.3,8.307]
[1755141542271,20.04049303,4756.4,4754.2,1.4871986]
[1755141542458,17.28923003,4754.9,4753.8,1.4871986]
[1755141542770,0.9294,4755.4,4753.9,3.41771986]
[1755141542934,0.431,4755.8,4754.0,8.307]
[1755141543135,11.41,4758.4,4754.0,8.307]
[1755141543136,0.431,4756.3,4754.1,4.7638]
[1755141543335,0.431,4756.0,4754.2,4.8162]
[1755141543543,0.431,4756.0,4754.3,8.0852]
[1755141543743,0.9294,4756.3,4754.4,3.7952]
[1755141544283,0.431,4756.2,4754.4,3.7952]
[1755141544435,0.431,4756.2,4754.5,0.5262]
[1755141544784,0.431,4756.7,4754.6,1.4871986]
[1755141544988,0.431,4756.7,4754.7,4.75243986]
[1755141545141,0.20951789,4758.9,4754.7,10.00343846]
[1755141545471,17.28923003,4757.4,4754.9,1.4871986]
[1755141545714,0.431,4757.3,4755.1,1.4871986]
[1755141545840,2.252863,4757.3,4755.2,3.99653986]
[1755141546176,2.252863,4757.3,4755.3,0.4738]
[1755141546388,0.9294,4757.2,4755.3,0.4738]
[1755141546541,0.9294,4757.2,4755.3,0.5262]
[1755141546739,0.9294,4757.1,4755.3,0.5262]
[1755141546975,0.431,4757.0,4755.4,0.33707028]
[1755141547174,17.2882826,4756.8,4755.5,3.269]
[1755141547377,0.9294,4756.7,4755.5,3.269]
[1755141547872,0.431,4756.6,4755.5,3.269]
[1755141548081,0.431,4756.6,4755.6,0.42812101]
[1755141548659,0.431,4756.9,4755.7,5.038]
[1755141550361,0.431,4756.9,4755.8,4.29]
[1755141550557,17.7866826,4756.8,4755.9,3.268]
[1755141550758,0.9294,4756.7,4755.9,3.268]
[1755141551188,0.4984,4756.7,4755.9,3.268]
[1755141551366,0.431,4756.6,4755.9,3.268]
[1755141551985,0.4984,4756.5,4755.9,3.268]
[1755141552185,0.431,4756.4,4755.9,3.268]
[1755141552389,0.4984,4756.3,4755.9,3.268]
[1755141552702,0.9294,4756.2,4756.0,3.268]
[1755141552874,0.431,4756.1,4756.0,3.268]
[1755141553078,0.9294,4756.1,4756.0,3.268]
[1755141554077,0.431,4756.1,4755.7,5.038]
[1755141554478,0.431,4756.9,4755.8,3.268]
[1755141554805,0.431,4756.7,4755.8,3.268]
[1755141555311,0.431,4756.9,4755.9,4.29]
[1755141555680,0.431,4757.6,4755.9,4.29]
[1755141555909,0.431,4757.6,4756.0,1.7334]
[1755141556123,0.4984,4757.5,4756.1,4.29]
[1755141556281,0.4984,4757.5,4756.0,1.7334]
[1755141556477,0.431,4757.4,4756.0,1.7334]
[1755141556813,0.431,4757.4,4756.1,4.29]
[1755141557019,0.431,4757.4,4756.2,4.52605]
[1755141557226,0.431,4757.4,4756.3,3.267]
[1755141557401,0.431,4757.4,4756.4,4.29]
[1755141557723,0.431,4757.4,4756.5,4.29]
[1755141557902,0.431,4757.4,4756.3,3.267]
[1755141557903,0.431,4758.0,4756.4,4.29]
[1755141558234,0.431,4758.0,4756.5,1.253105]
[1755141559419,0.431,4758.0,4756.6,3.267]
[1755141559997,0.4984,4757.9,4756.6,3.267]
[1755141560196,0.431,4757.8,4756.6,3.267]
[1755141560411,0.431,4757.8,4756.7,0.480295]
[1755141561320,17.7866826,4757.7,4756.8,3.266]
[1755141561617,0.9414,4757.6,4756.8,3.266]
[1755141562002,0.485,4757.6,4756.8,3.266]
[1755141562197,0.4564,4757.5,4756.8,3.266]
[1755141563927,0.4564,4757.5,4756.9,4.29]
[1755141564097,18.2296826,4758.0,4756.9,5.006345]
[1755141564296,0.9414,4758.0,4756.9,5.006345]
[1755141564847,0.485,4758.0,4756.9,5.006345]
[1755141565145,0.4564,4757.9,4756.9,5.006345]
[1755141566350,17.7446826,4757.9,4756.9,5.006345]
[1755141566538,0.485,4757.8,4756.9,4.29]
[1755141566859,0.9414,4757.8,4756.9,4.29]
[1755141567338,0.4564,4757.7,4756.9,4.29]
[1755141567646,0.4564,4757.7,4757.0,3.265]
[1755141567846,17.7732826,4757.6,4756.9,4.29]
[1755141568021,17.2882826,4757.1,4757.0,3.265]
[1755141568222,18.2296826,4757.1,4757.0,3.265]
[1755141568629,18.2296826,4757.1,4755.7,5.038]
[1755141568843,0.9414,4757.0,4755.7,5.038]
[1755141569446,17.2882826,4757.1,4755.7,5.038]
[1755141569447,0.9414,4756.9,4755.7,5.038]
[1755141569745,17.2882826,4756.6,4755.7,5.038]
[1755141569950,0.4564,4756.5,4755.8,3.265]
[1755141570846,0.485,4756.4,4755.8,3.265]
[1755141571051,17.2882826,4756.6,4755.8,3.265]
[1755141571225,0.4564,4756.4,4755.7,5.038]
[1755141571426,0.4564,4756.4,4755.8,3.265]
[1755141572020,0.4564,4756.4,4755.9,3.265]
[1755141572246,0.4564,4756.4,4755.7,5.038]
[1755141572553,0.4564,4756.4,4755.8,3.265]
[1755141572554,0.485,4756.3,4755.8,3.265]
[1755141572928,0.9414,4756.2,4755.8,3.265]
[1755141573125,0.485,4756.2,4755.8,3.265]
[1755141573442,0.4564,4756.1,4755.8,3.265]
[1755141573638,0.9414,4756.0,4755.7,5.038]
[1755141573844,0.485,4756.0,4755.9,3.265]
[1755141574349,0.9414,4756.0,4755.9,3.265]
[1755141575852,0.4564,4757.0,4755.9,3.265]
[1755141576054,0.4564,4757.0,4755.9,4.5546]
[1755141576452,0.4564,4757.0,4756.0,3.265]
[1755141576756,0.485,4756.9,4756.1,3.264]
[1755141576952,0.485,4756.9,4755.7,5.038]
[1755141576953,0.485,4756.9,4756.2,3.264]
[1755141577250,0.4564,4756.8,4756.3,3.264]
[1755141577449,0.485,4756.9,4755.7,5.038]
[1755141577450,0.4564,4756.7,4756.4,3.264]
[1755141577656,0.485,4756.9,4756.4,3.264]
[1755141577862,17.2882826,4756.7,4756.5,3.264]
[1755141578228,0.4564,4756.6,4756.5,3.264]
[1755141578842,0.4564,4756.6,4755.7,5.038]
[1755141579132,0.4564,4756.6,4755.8,3.264]
[1755141579341,0.4564,4756.6,4755.7,5.58773]
[1755141579732,0.4564,4756.6,4755.8,3.264]
[1755141579940,0.4564,4756.6,4755.9,3.264]
[1755141582337,0.4564,4756.6,4756.0,3.264]
[1755141585177,17.2882826,4756.7,4756.0,3.264]
[1755141586368,17.7446826,4757.1,4756.0,3.264]
[1755141586538,17.2882826,4756.6,4755.6,1.11844045]
[1755141586739,17.2882826,4756.6,4755.7,3.263]
[1755141586962,0.9414,4756.5,4755.7,3.263]
[1755141587178,0.9414,4756.5,4755.5,6.15644045]
[1755141587370,0.485,4756.5,4755.8,3.263]
[1755141587538,0.4564,4756.4,4755.5,6.15644045]
[1755141587745,0.4564,4756.4,4755.6,3.263]
[1755141587938,0.485,4756.3,4755.6,3.263]
[1755141588245,0.4564,4756.2,4755.7,3.263]
[1755141588445,0.4564,4756.1,4755.7,3.263]
[1755141588663,0.4564,4756.0,4755.7,3.263]
[1755141588844,0.485,4756.4,4755.7,3.263]
[1755141589271,17.2882826,4756.1,4755.5,5.038]
[1755141589473,0.9414,4756.0,4755.6,3.263]
[1755141589655,0.9414,4755.9,4755.6,3.263]
[1755141589855,0.9414,4755.8,4755.6,3.263]
[1755141590170,3.04252725,4755.7,4755.6,3.263]
[1755141590542,3.04252725,4755.7,4755.5,5.038]
[1755141590865,18.2296826,4755.6,4754.3,1.11844045]
[1755141591181,17.2882826,4755.0,4754.4,3.262]
[1755141591353,0.9049,4754.9,4754.5,3.262]
[1755141591847,0.4364,4754.8,4754.5,3.262]
[1755141592046,14.5,4754.7,4754.5,3.262]
[1755141592357,14.9364,4754.7,4754.5,3.262]
[1755141593196,0.4364,4754.6,4754.5,3.262]
[1755141593478,0.9049,4754.6,4754.5,3.262]
[1755141594072,2.44539,4754.6,4754.5,3.262]
[1755141594276,2.44539,4754.6,4753.8,5.038]
[1755141594458,0.4364,4754.5,4753.9,3.262]
[1755141595965,14.5,4754.7,4753.9,3.262]
[1755141596760,14.5,4754.7,4753.9,4.63166]
[1755141596955,14.5,4754.7,4754.0,0.0524]
[1755141597175,14.5,4754.7,4754.0,4.833]
[1755141597359,0.4364,4755.8,4754.0,5.95144045]
[1755141597554,17.7246826,4755.8,4754.1,4.29]
[1755141597790,15.4049,4755.7,4754.2,0.61659]
[1755141598079,14.9364,4755.7,4754.2,0.543]
[1755141598252,14.5,4755.7,4754.3,0.543]
[1755141598452,14.5,4755.7,4754.4,0.0524]
[1755141598658,14.5,4755.7,4754.5,4.18334405]
[1755141598863,14.5,4755.7,4754.5,5.3017845]
[1755141599067,14.5,4755.7,4754.6,1.60904045]
[1755141599382,14.5,4755.7,4754.7,1.11844045]
[1755141599557,14.5,4755.7,4754.8,1.11844045]
[1755141599762,14.5,4755.7,4754.9,3.79741845]
[1755141599963,14.5,4755.7,4755.0,0.4906]
[1755141600268,14.5,4755.7,4754.9,0.53541845]
[1755141600468,0.4364,4755.6,4755.1,3.262]
[1755141600669,0.4364,4755.6,4754.3,4.29]
[1755141600875,0.4685,4755.5,4754.4,3.262]
[1755141601356,14.5,4755.4,4754.4,3.262]
[1755141601654,0.4364,4755.3,4754.4,3.262]
[1755141601852,2.44539,4755.3,4754.3,4.29]
[1755141602091,18.1931826,4755.3,4754.4,3.261]
[1755141602264,14.5,4754.6,4754.4,3.261]
[1755141602468,0.4364,4754.5,4754.4,3.261]
[1755141603088,14.5,4754.5,4754.4,3.261]
[1755141603460,0.4364,4756.0,4754.4,3.261]
[1755141603660,0.4364,4756.0,4754.5,4.29]
[1755141603878,0.4364,4756.0,4754.6,0.4906]
[1755141604072,14.5,4755.9,4754.6,0.4906]
[1755141604273,14.5,4755.9,4754.7,0.8094]
[1755141604570,14.5,4755.9,4754.8,8.0416]
[1755141604772,14.5,4755.9,4754.9,0.0524]
[1755141604971,14.5,4755.9,4755.0,4.29]
[1755141605161,14.5,4755.9,4755.1,4.7806]
[1755141605394,14.5,4755.9,4755.2,3.94725]
[1755141605698,14.5,4755.9,4755.3,3.261]
[1755141605864,0.4364,4757.0,4755.4,4.29]
[1755141606067,0.4364,4757.0,4755.5,0.4906]
[1755141606263,14.5,4756.9,4755.5,0.4906]
[1755141606584,14.5,4756.9,4755.6,0.501425]
[1755141606906,14.5,4756.9,4755.7,3.7516]
[1755141611591,14.5,4756.9,4755.8,4.29]
[1755141611788,14.5,4756.9,4755.6,0.449025]
[1755141611789,0.4364,4756.8,4755.6,0.449025]
[1755141611995,0.9049,4756.8,4755.9,3.26]
[1755141612199,0.9049,4756.8,4756.0,3.26]
[1755141612404,14.9364,4756.7,4756.1,3.26]
[1755141612971,14.5,4756.7,4756.1,3.26]
[1755141613199,14.5,4756.7,4756.2,0.8094]
[1755141614500,14.9364,4756.7,4756.2,0.8094]
[1755141614667,14.5,4756.7,4756.2,0.8094]
[1755141614873,14.5,4756.7,4756.3,0.4906]
[1755141615591,14.5,4756.7,4756.4,0.4906]
[1755141615899,0.4364,4757.6,4756.2,0.8094]
[1755141615900,0.4364,4757.6,4756.5,4.2056]
[1755141616400,14.5,4757.5,4756.5,3.715]
[1755141617503,14.5,4757.5,4756.7,17.2882826]
[1755141617810,0.4364,4758.1,4756.8,0.4906]
[1755141617978,0.4364,4758.1,4756.9,3.258]
[1755141618178,14.5,4758.0,4757.0,0.23025]
[1755141619003,0.4364,4757.9,4757.0,0.23025]
[1755141619598,14.5,4758.0,4757.0,0.23025]
[1755141619995,14.5,4758.0,4757.1,0.4906]
[1755141620502,14.9364,4758.0,4757.0,0.38563767]
[1755141620694,14.9364,4758.0,4757.1,0.36960377]
[1755141621478,14.5,4758.0,4757.1,0.36960377]
[1755141621685,14.5,4758.0,4757.2,0.487]
[1755141622177,0.4611,4758.6,4757.2,0.487]
[1755141622386,0.4611,4758.6,4757.3,0.45526414]
[1755141622711,0.003,4758.7,4757.4,3.257]
[1755141622906,0.003,4758.7,4757.4,3.744]
[1755141624194,0.003,4758.7,4757.3,0.45526414]
[1755141624400,0.4611,4758.6,4757.5,3.257]
[1755141625702,0.4611,4758.6,4756.6,1.4871986]
[1755141625703,0.4611,4758.6,4756.9,0.487]
[1755141625899,0.4752,4758.5,4756.9,0.487]
[1755141626098,0.4611,4758.4,4757.0,3.257]
[1755141626302,0.4611,4758.4,4757.1,0.37964]
[1755141626793,0.003,4758.7,4757.1,0.86664]
[1755141627192,0.003,4758.7,4757.1,0.37964]
[1755141627402,0.003,4758.7,4757.2,0.5394]
[1755141627610,0.4641,4758.7,4757.3,4.29]
[1755141627810,0.4641,4758.7,4757.4,0.846604]
[1755141627991,0.4641,4758.7,4757.5,4.29]
[1755141628192,0.4641,4758.7,4757.6,3.256]
[1755141628409,0.4641,4758.7,4757.6,7.546]
[1755141628717,0.4641,4758.7,4757.6,3.256]
[1755141628918,0.4641,4758.7,4757.7,0.269406]
[1755141629117,0.4641,4758.7,4757.8,3.256]
[1755141629329,0.4752,4758.6,4757.8,3.256]
[1755141629693,0.4611,4758.5,4757.8,3.256]
[1755141629912,0.4611,4758.5,4757.9,3.256]
[1755141630111,0.4752,4758.4,4756.9,0.15374761]
[1755141630322,0.4611,4758.3,4757.0,3.256]
[1755141630500,0.4752,4758.2,4757.0,3.256]
[1755141630694,0.4752,4758.2,4756.0,5.038]
[1755141630695,14.9611,4758.1,4756.0,5.038]
[1755141630905,0.9363,4758.0,4756.1,3.8075]
[1755141631190,0.9363,4757.9,4756.1,3.8075]
[1755141631420,0.9363,4757.8,4756.1,0.5525]
[1755141631633,0.003,4758.7,4756.1,0.5525]
[1755141631634,15.4363,4757.7,4756.2,3.255]
[1755141631836,15.4363,4757.7,4756.2,3.81405]
[1755141633499,14.9611,4757.7,4756.2,3.81405]
[1755141633705,0.9363,4758.4,4756.4,37.43189814]
[1755141633900,0.9363,4758.4,4756.5,1.476]
[1755141634131,0.4611,4758.4,4756.8,1.4871986]
[1755141634301,0.4611,4758.4,4756.9,4.7421986]
[1755141634504,0.4611,4758.4,4756.9,5.2815986]
[1755141634825,0.4611,4758.4,4756.9,4.7945986]
[1755141635027,0.003,4758.7,4757.0,0.96645986]
[1755141635228,0.003,4758.7,4757.2,1.4871986]
[1755141636009,0.003,4758.7,4757.3,0.487]
[1755141636833,0.4611,4758.6,4757.4,7.545]
[1755141637138,0.9363,4758.6,4757.5,4.29]
[1755141637301,0.9363,4758.6,4757.6,5.30619014]
[1755141637504,0.9363,4758.6,4757.7,4.29]
[1755141638133,0.4752,4758.6,4757.7,4.29]
[1755141638330,0.9363,4758.5,4757.7,4.29]
[1755141638532,0.003,4758.7,4757.7,4.29]
[1755141638533,0.9363,4758.4,4757.8,3.255]
[1755141638708,0.4611,4758.3,4757.8,3.255]
[1755141638914,0.4611,4758.3,4757.9,0.7545]
[1755141639114,0.4611,4758.2,4757.9,0.7545]
[1755141639913,0.4611,4758.2,4758.0,8.289]
[1755141640114,0.4752,4758.4,4758.0,8.289]
[1755141640316,0.4611,4758.1,4758.0,8.289]
[1755141640640,0.4611,4758.5,4758.0,9.5469]
[1755141640813,0.9363,4758.4,4758.0,8.289]
[1755141641142,0.003,4758.7,4758.0,5.035]
[1755141641143,0.9363,4758.3,4758.0,5.035]
[1755141641338,0.9363,4758.2,4758.1,3.254]
[1755141642530,0.9363,4758.2,4758.1,7.544]
[1755141642836,0.9363,4758.2,4758.1,3.254]
[1755141643041,0.9363,4758.2,4758.0,5.035]
[1755141643239,0.003,4758.7,4758.1,3.254]
[1755141643611,0.003,4758.7,4758.2,4.29]
[1755141643811,0.9363,4758.6,4758.3,4.29]
[1755141644013,1.54393,4758.6,4758.3,4.29]
[1755141644218,0.9363,4758.5,4758.3,4.29]
[1755141644444,0.9363,4758.5,4758.4,3.254]
[1755141647342,0.9363,4758.5,4758.4,3.253]
[1755141647921,15.4363,4758.5,4758.4,3.253]
[1755141648158,17.73362015,4758.5,4758.4,3.253]
[1755141651025,17.73359703,4758.5,4758.4,3.253]
[1755141651227,17.53742725,4758.5,4758.4,3.253]
[1755141654765,17.54622725,4758.5,4758.4,3.253]
[1755141655829,14.9611,4758.5,4758.4,3.253]
[1755141656133,14.5,4758.5,4758.4,3.253]
[1755141659257,0.003,4758.7,4758.4,3.253]
[1755141662888,0.467,4758.6,4758.0,5.035]
[1755141663074,0.467,4758.6,4758.1,3.251]
[1755141664391,0.003,4758.7,4758.1,4.0796]
[1755141664965,0.47,4758.7,4758.1,4.0796]
[1755141666565,0.954,4758.7,4758.0,5.035]
[1755141666762,0.954,4758.7,4758.1,3.251]
[1755141666980,0.003,4758.7,4758.1,3.251]
[1755141667188,0.951,4758.6,4758.1,3.251]
[1755141667388,0.951,4758.5,4758.1,3.251]
[1755141667694,0.951,4758.4,4756.7,1.4871986]
[1755141667864,3.05212725,4758.3,4756.8,3.251]
[1755141668063,2.10112725,4758.3,4756.9,3.251]
[1755141668386,0.951,4758.2,4756.9,3.251]
[1755141668962,0.951,4758.2,4757.0,0.467]
[1755141668963,0.467,4758.2,4757.0,0.467]
[1755141669178,0.467,4758.6,4757.1,0.37704]
[1755141669578,0.467,4758.6,4757.2,0.5194]
[1755141669795,0.003,4758.7,4757.3,3.3034]
[1755141669959,0.003,4758.7,4757.4,2.0065986]